[Event "*** Titled Tuesday Blitz"]
[Site "Chess.com"]
[Date "2021.04.27"]
[Round "4"]
[White "NiranjanNavalgund"]
[Black "kingofthenil"]
[Result "0-1"]
[WhiteElo "2471"]
[BlackElo "2648"]
[TimeControl "180+1"]
[EndTime "10:41:26 PDT"]
[Termination "kingofthenil won by resignation"]

1. e4 {[%clk 0:03:00.9]} 1... Nc6 {[%clk 0:02:58.8]} 2. Nc3 {[%clk 0:02:59.5]}
2... d5 {[%clk 0:02:57.7]} 3. exd5 {[%clk 0:02:58.5]} 3... Nb4 {[%clk
0:02:57.2]} 4. Bc4 {[%clk 0:02:55.9]} 4... Nf6 {[%clk 0:02:56.8]} 5. Nf3 {[%clk
0:02:47.9]} 5... Bf5 {[%clk 0:02:56.3]} 6. d3 {[%clk 0:02:47.7]} 6... Nbxd5
{[%clk 0:02:55.9]} 7. Nxd5 {[%clk 0:02:47.4]} 7... Nxd5 {[%clk 0:02:56.8]} 8.
O-O {[%clk 0:02:47.7]} 8... e6 {[%clk 0:02:56.8]} 9. Re1 {[%clk 0:02:47.6]} 9...
Be7 {[%clk 0:02:57]} 10. Nd4 {[%clk 0:02:45.5]} 10... Bg6 {[%clk 0:02:56.2]} 11.
Bb5+ {[%clk 0:02:25.9]} 11... c6 {[%clk 0:02:56.4]} 12. Nxc6 {[%clk 0:02:24.9]}
12... bxc6 {[%clk 0:02:57.3]} 13. Bxc6+ {[%clk 0:02:24.9]} 13... Kf8 {[%clk
0:02:58.2]} 14. Bxa8 {[%clk 0:02:21.9]} 14... Qxa8 {[%clk 0:02:59.1]} 15. Qf3
{[%clk 0:02:22.2]} 15... Qc8 {[%clk 0:02:56.4]} 16. c3 {[%clk 0:02:20.7]} 16...
h5 {[%clk 0:02:50.2]} 17. Bd2 {[%clk 0:02:19.3]} 17... h4 {[%clk 0:02:46.9]} 18.
h3 {[%clk 0:02:19.2]} 18... Bh5 {[%clk 0:02:46.6]} 19. Qe4 {[%clk 0:02:18.7]}
19... Bg6 {[%clk 0:02:44.3]} 20. Qf3 {[%clk 0:02:18]} 20... Rh5 {[%clk
0:02:41.8]} 21. d4 {[%clk 0:02:15.8]} 21... Qb8 {[%clk 0:02:28.2]} 22. b3 {[%clk
0:02:12.2]} 22... Rf5 {[%clk 0:02:26.6]} 23. Qe2 {[%clk 0:02:08.1]} 23... Bd6
{[%clk 0:02:21.9]} 24. c4 {[%clk 0:02:06.8]} 24... Nf4 {[%clk 0:02:21.2]} 25.
Bxf4 {[%clk 0:02:04.9]} 25... Bxf4 {[%clk 0:02:22.1]} 26. Rad1 {[%clk 0:02:00]}
26... Bh5 {[%clk 0:02:01.9]} 27. f3 {[%clk 0:01:59.7]} 27... Bh2+ {[%clk
0:01:59.1]} 28. Kh1 {[%clk 0:01:59.3]} 28... Bg3 {[%clk 0:01:58.6]} 29. Rf1
{[%clk 0:01:59]} 29... Kg8 {[%clk 0:01:55.6]} 30. Rd3 {[%clk 0:01:59]} 30... Rf4
{[%clk 0:01:51.9]} 31. d5 {[%clk 0:01:58]} 31... Bg6 {[%clk 0:01:50.4]} 32. Rd2
{[%clk 0:01:52.8]} 32... exd5 {[%clk 0:01:48.2]} 33. cxd5 {[%clk 0:01:53.7]}
33... Rf6 {[%clk 0:01:43.9]} 34. Qc4 {[%clk 0:01:44.5]} 34... Rd6 {[%clk
0:01:40.4]} 35. Rc1 {[%clk 0:01:40]} 35... Rd8 {[%clk 0:01:39.8]} 36. Rcd1
{[%clk 0:01:36.9]} 36... Rc8 {[%clk 0:01:28.3]} 37. Qd4 {[%clk 0:01:33]} 37...
Rd8 {[%clk 0:01:10.1]} 38. Qc4 {[%clk 0:01:21.7]} 38... Qe5 {[%clk 0:00:54.8]}
39. Re2 {[%clk 0:01:16.9]} 39... Qf6 {[%clk 0:00:54.9]} 40. Qb5 {[%clk
0:01:11.9]} 40... Kh7 {[%clk 0:00:50]} 41. Re8 {[%clk 0:01:07.7]} 41... a6
{[%clk 0:00:46.9]} 42. Qe2 {[%clk 0:00:58.5]} 42... Rd6 {[%clk 0:00:21]} 43. Ra8
{[%clk 0:00:50.9]} 43... Be5 {[%clk 0:00:20.4]} 44. Re8 {[%clk 0:00:45.1]} 44...
Bg3 {[%clk 0:00:18.4]} 45. Ra8 {[%clk 0:00:44.9]} 45... Bf5 {[%clk 0:00:12.4]}
46. Qe8 {[%clk 0:00:42.6]} 46... Rxd5 {[%clk 0:00:11.8]} 47. Rf1 {[%clk
0:00:38.2]} 47... Rd2 {[%clk 0:00:07.3]} 48. Qh8+ {[%clk 0:00:35]} 48... Kg6
{[%clk 0:00:07]} 49. Qe8 {[%clk 0:00:31.9]} 49... Qd6 {[%clk 0:00:03]} 50. Qe3
{[%clk 0:00:27.3]} 50... Rd1 {[%clk 0:00:02.3]} 51. Rg1 {[%clk 0:00:25.2]} 51...
Rd2 {[%clk 0:00:01.9]} 52. Re8 {[%clk 0:00:22.9]} 52... Bf2 {[%clk 0:00:02]} 53.
Qe7 {[%clk 0:00:17.1]} 53... Qxe7 {[%clk 0:00:01.8]} 54. Rxe7 {[%clk 0:00:18]}
54... Bxg1 {[%clk 0:00:02.5]} 55. Kxg1 {[%clk 0:00:18.6]} 55... Rxa2 {[%clk
0:00:03.1]} 56. Rb7 {[%clk 0:00:18.7]} 56... Be6 {[%clk 0:00:03.1]} 57. Rb6
{[%clk 0:00:18.6]} 57... Rb2 {[%clk 0:00:03.2]} 58. b4 {[%clk 0:00:18.5]} 58...
Kf5 {[%clk 0:00:03.2]} 59. Rxa6 {[%clk 0:00:17.6]} 59... Kf4 {[%clk 0:00:03.5]}
60. Kh2 {[%clk 0:00:18]} 60... Rxb4 {[%clk 0:00:02.9]} 61. Ra8 {[%clk
0:00:17.8]} 61... g5 {[%clk 0:00:03.1]} 62. Rh8 {[%clk 0:00:17.8]} 62... Kf5
{[%clk 0:00:03.4]} 63. Rg8 {[%clk 0:00:17.8]} 63... Kf6 {[%clk 0:00:03.5]} 64.
Rh8 {[%clk 0:00:17.8]} 64... Rc4 {[%clk 0:00:03.9]} 65. Ra8 {[%clk 0:00:18.1]}
65... Rc8 {[%clk 0:00:03.9]} 66. Ra5 {[%clk 0:00:18.6]} 66... Kg7 {[%clk
0:00:04.3]} 67. Rxg5+ {[%clk 0:00:18.1]} 67... Kh6 {[%clk 0:00:04.8]} 68. f4
{[%clk 0:00:17.6]} 68... Rc3 {[%clk 0:00:04.4]} 69. Kg1 {[%clk 0:00:17.5]} 69...
Rg3 {[%clk 0:00:04]} 70. Rxg3 {[%clk 0:00:13.2]} 70... hxg3 {[%clk 0:00:04.5]}
71. Kf1 {[%clk 0:00:13.8]} 71... Bd5 {[%clk 0:00:05]} 72. Kg1 {[%clk 0:00:10.6]}
72... Kg6 {[%clk 0:00:05.3]} 73. h4 {[%clk 0:00:10.8]} 73... Kf5 {[%clk
0:00:05.5]} 74. h5 {[%clk 0:00:11.4]} 74... Kxf4 {[%clk 0:00:05.6]} 75. h6
{[%clk 0:00:12]} 75... Be4 {[%clk 0:00:06.2]} 76. Kf1 {[%clk 0:00:11.4]} 76...
Kg5 {[%clk 0:00:06.4]} 77. h7 {[%clk 0:00:10.8]} 77... Bxh7 {[%clk 0:00:06.1]}
78. Ke2 {[%clk 0:00:11.7]} 78... f5 {[%clk 0:00:04.8]} 79. Kf1 {[%clk
0:00:12.6]} 79... f4 {[%clk 0:00:05.1]} 80. Ke2 {[%clk 0:00:13.3]} 80... Be4
{[%clk 0:00:05.3]} 81. Kf1 {[%clk 0:00:13.7]} 81... Kg4 {[%clk 0:00:05.4]} 82.
Kg1 {[%clk 0:00:14.2]} 82... Bxg2 {[%clk 0:00:05.2]} 83. Kxg2 {[%clk 0:00:14.1]}
83... f3+ {[%clk 0:00:06.1]} 84. Kh1 {[%clk 0:00:14.5]} 84... Kh3 {[%clk
0:00:05.5]} 85. Kg1 {[%clk 0:00:15]} 85... g2 {[%clk 0:00:03.8]} 86. Kf2 {[%clk
0:00:15.2]} 86... Kh2 {[%clk 0:00:04.7]} 0-1

[Event "*** Titled Tuesday Blitz"]
[Site "Chess.com"]
[Date "2021.04.27"]
[Round "4"]
[White "blitzking1729"]
[Black "Natalya_Buksa"]
[Result "1/2-1/2"]
[WhiteElo "2665"]
[BlackElo "2508"]
[TimeControl "180+1"]
[EndTime "10:41:34 PDT"]
[Termination "Game drawn - insufficient material"]

1. Nf3 {[%clk 0:03:00.9]} 1... d5 {[%clk 0:02:59.6]} 2. c4 {[%clk 0:03:01]} 2...
e6 {[%clk 0:02:59.2]} 3. b3 {[%clk 0:02:59.9]} 3... Nf6 {[%clk 0:02:57.2]} 4.
Bb2 {[%clk 0:02:59.3]} 4... c5 {[%clk 0:02:57.7]} 5. g3 {[%clk 0:02:57.4]} 5...
Nc6 {[%clk 0:02:57.2]} 6. Bg2 {[%clk 0:02:57.6]} 6... d4 {[%clk 0:02:57.7]} 7.
O-O {[%clk 0:02:57.6]} 7... Be7 {[%clk 0:02:58.1]} 8. e3 {[%clk 0:02:57.7]} 8...
O-O {[%clk 0:02:58.5]} 9. exd4 {[%clk 0:02:57.8]} 9... cxd4 {[%clk 0:02:59]} 10.
Re1 {[%clk 0:02:58.5]} 10... a5 {[%clk 0:02:46.7]} 11. d3 {[%clk 0:02:53.5]}
11... Re8 {[%clk 0:02:44.3]} 12. Nbd2 {[%clk 0:02:52]} 12... Bf8 {[%clk
0:02:39.9]} 13. Ne5 {[%clk 0:02:50.5]} 13... Nxe5 {[%clk 0:02:38.1]} 14. Rxe5
{[%clk 0:02:51.4]} 14... Bd6 {[%clk 0:02:37.9]} 15. Qe1 {[%clk 0:02:45.5]} 15...
Bxe5 {[%clk 0:02:21.3]} 16. Qxe5 {[%clk 0:02:45]} 16... Ng4 {[%clk 0:02:21.8]}
17. Qxd4 {[%clk 0:02:26.6]} 17... Qxd4 {[%clk 0:02:20.5]} 18. Bxd4 {[%clk
0:02:27.5]} 18... Rd8 {[%clk 0:02:21.2]} 19. Nf3 {[%clk 0:02:24.5]} 19... e5
{[%clk 0:02:19.6]} 20. Bb6 {[%clk 0:02:21.5]} 20... Rxd3 {[%clk 0:01:41]} 21. h3
{[%clk 0:02:19.9]} 21... Nf6 {[%clk 0:01:41.4]} 22. Nxe5 {[%clk 0:02:19.2]}
22... Rd2 {[%clk 0:01:41.9]} 23. Be3 {[%clk 0:02:15.7]} 23... Rd8 {[%clk
0:01:40.4]} 24. c5 {[%clk 0:02:05]} 24... Ra6 {[%clk 0:01:39.7]} 25. c6 {[%clk
0:02:01.3]} 25... bxc6 {[%clk 0:01:28.9]} 26. Nxc6 {[%clk 0:01:59.8]} 26... Re8
{[%clk 0:01:23.7]} 27. Bc5 {[%clk 0:01:56]} 27... h5 {[%clk 0:01:18.1]} 28. Ne7+
{[%clk 0:01:53.6]} 28... Kh7 {[%clk 0:01:17.7]} 29. Nxc8 {[%clk 0:01:53.1]}
29... Rxc8 {[%clk 0:01:16.8]} 30. Bb7 {[%clk 0:01:52.6]} 30... Rxc5 {[%clk
0:00:46.2]} 31. Bxa6 {[%clk 0:01:51.6]} 31... g6 {[%clk 0:00:44.3]} 32. a3
{[%clk 0:01:44.4]} 32... Rc3 {[%clk 0:00:25.4]} 33. Rb1 {[%clk 0:01:37.7]} 33...
Ne4 {[%clk 0:00:23.6]} 34. b4 {[%clk 0:01:25.8]} 34... Rxa3 {[%clk 0:00:14.9]}
35. b5 {[%clk 0:01:24.9]} 35... Nc5 {[%clk 0:00:15.4]} 36. Bc8 {[%clk
0:01:21.8]} 36... a4 {[%clk 0:00:15.8]} 37. Rc1 {[%clk 0:01:16.6]} 37... Ne4
{[%clk 0:00:10.7]} 38. b6 {[%clk 0:01:06.3]} 38... Nd6 {[%clk 0:00:10.9]} 39.
Bd7 {[%clk 0:01:03.6]} 39... Rb3 {[%clk 0:00:10.6]} 40. Bxa4 {[%clk 0:00:57.5]}
40... Rxb6 {[%clk 0:00:10.2]} 41. Rc7 {[%clk 0:00:57.4]} 41... Kg7 {[%clk
0:00:10.2]} 42. Kg2 {[%clk 0:00:57.3]} 42... Kf6 {[%clk 0:00:08]} 43. Bd1 {[%clk
0:00:54.9]} 43... Ra6 {[%clk 0:00:08.2]} 44. Be2 {[%clk 0:00:54.6]} 44... Rb6
{[%clk 0:00:08.5]} 45. Rc2 {[%clk 0:00:52.3]} 45... Ke6 {[%clk 0:00:08.2]} 46.
Bf3 {[%clk 0:00:52.2]} 46... Kf6 {[%clk 0:00:08.5]} 47. Re2 {[%clk 0:00:51.3]}
47... Kf5 {[%clk 0:00:08.6]} 48. Ra2 {[%clk 0:00:46.9]} 48... Kf6 {[%clk
0:00:08.7]} 49. Ra5 {[%clk 0:00:46.4]} 49... Kg7 {[%clk 0:00:08.9]} 50. Ra7
{[%clk 0:00:45.8]} 50... Kf6 {[%clk 0:00:09.2]} 51. g4 {[%clk 0:00:44.9]} 51...
hxg4 {[%clk 0:00:08.9]} 52. hxg4 {[%clk 0:00:44.4]} 52... Kg5 {[%clk 0:00:09]}
53. Kg3 {[%clk 0:00:43.7]} 53... f5 {[%clk 0:00:06.9]} 54. Ra5 {[%clk
0:00:41.6]} 54... Kf6 {[%clk 0:00:06.5]} 55. gxf5 {[%clk 0:00:37.4]} 55... Nxf5+
{[%clk 0:00:06.4]} 56. Kh2 {[%clk 0:00:37.1]} 56... Rb2 {[%clk 0:00:06.1]} 57.
Ra6+ {[%clk 0:00:34.8]} 57... Kg5 {[%clk 0:00:05.7]} 58. Kg2 {[%clk 0:00:33.2]}
58... Nh4+ {[%clk 0:00:05.6]} 59. Kg3 {[%clk 0:00:33.1]} 59... Rb3 {[%clk
0:00:05.7]} 60. Ra5+ {[%clk 0:00:33]} 60... Nf5+ {[%clk 0:00:04.6]} 61. Kg2
{[%clk 0:00:32.8]} 61... Kf6 {[%clk 0:00:05]} 62. Be4 {[%clk 0:00:31.8]} 62...
Rc3 {[%clk 0:00:04.8]} 63. Ra6+ {[%clk 0:00:31.2]} 63... Kg5 {[%clk 0:00:05]}
64. Ra5 {[%clk 0:00:30.3]} 64... Kf4 {[%clk 0:00:05.1]} 65. Bxf5 {[%clk
0:00:29]} 65... gxf5 {[%clk 0:00:05.2]} 66. Ra4+ {[%clk 0:00:28.8]} 66... Kg5
{[%clk 0:00:05.5]} 67. f3 {[%clk 0:00:27.9]} 67... Rb3 {[%clk 0:00:05.4]} 68.
Kg3 {[%clk 0:00:27]} 68... Rc3 {[%clk 0:00:05.6]} 69. Ra5 {[%clk 0:00:24.4]}
69... Rb3 {[%clk 0:00:05.4]} 70. Kf2 {[%clk 0:00:23.5]} 70... Rb2+ {[%clk
0:00:05.5]} 71. Ke3 {[%clk 0:00:23.6]} 71... Rb3+ {[%clk 0:00:06.4]} 72. Ke2
{[%clk 0:00:23.7]} 72... Rb2+ {[%clk 0:00:06.9]} 73. Kd3 {[%clk 0:00:23.7]}
73... Rb3+ {[%clk 0:00:07.8]} 74. Ke2 {[%clk 0:00:24.1]} 74... Rb2+ {[%clk
0:00:08.2]} 75. Ke3 {[%clk 0:00:23.8]} 75... Rb3+ {[%clk 0:00:08.6]} 76. Kf2
{[%clk 0:00:24.2]} 76... Kf4 {[%clk 0:00:07]} 77. Ra4+ {[%clk 0:00:23.9]} 77...
Kg5 {[%clk 0:00:07.4]} 78. Kg2 {[%clk 0:00:24.2]} 78... Rc3 {[%clk 0:00:06.7]}
79. Kg3 {[%clk 0:00:24]} 79... Rb3 {[%clk 0:00:07.1]} 80. Ra8 {[%clk 0:00:23.5]}
80... f4+ {[%clk 0:00:06.1]} 81. Kg2 {[%clk 0:00:22]} 81... Rb2+ {[%clk
0:00:06.1]} 82. Kg1 {[%clk 0:00:21.7]} 82... Kh4 {[%clk 0:00:05.4]} 83. Rg8
{[%clk 0:00:21.7]} 83... Kh3 {[%clk 0:00:05.3]} 84. Rg4 {[%clk 0:00:20.8]} 84...
Rb1+ {[%clk 0:00:05.4]} 85. Kf2 {[%clk 0:00:20.3]} 85... Rb2+ {[%clk 0:00:05.8]}
86. Kf1 {[%clk 0:00:20.5]} 86... Ra2 {[%clk 0:00:06]} 87. Rxf4 {[%clk
0:00:20.3]} 87... Kg3 {[%clk 0:00:05.8]} 88. Rf8 {[%clk 0:00:19.5]} 88... Rf2+
{[%clk 0:00:06]} 89. Kg1 {[%clk 0:00:18.7]} 89... Rxf3 {[%clk 0:00:06.3]} 90.
Rxf3+ {[%clk 0:00:18]} 90... Kxf3 {[%clk 0:00:06.5]} 1/2-1/2

[Event "*** Titled Tuesday Blitz"]
[Site "Chess.com"]
[Date "2021.04.27"]
[Round "4"]
[White "Rodalquilar"]
[Black "GM_dmitrij"]
[Result "0-1"]
[WhiteElo "2759"]
[BlackElo "2962"]
[TimeControl "180+1"]
[EndTime "10:41:54 PDT"]
[Termination "GM_dmitrij won by checkmate"]

1. d4 {[%clk 0:03:00.9]} 1... Nf6 {[%clk 0:02:59.4]} 2. Bf4 {[%clk 0:03:00.9]}
2... d5 {[%clk 0:02:57.3]} 3. e3 {[%clk 0:03:01.3]} 3... c5 {[%clk 0:02:57.1]}
4. Nf3 {[%clk 0:03:01.7]} 4... Nc6 {[%clk 0:02:54.6]} 5. c3 {[%clk 0:03:01.9]}
5... Qb6 {[%clk 0:02:53.1]} 6. Qc2 {[%clk 0:03:02.1]} 6... cxd4 {[%clk
0:02:33.6]} 7. exd4 {[%clk 0:03:03]} 7... Bf5 {[%clk 0:02:31.4]} 8. Qb3 {[%clk
0:03:03.2]} 8... e6 {[%clk 0:02:27.9]} 9. Qxb6 {[%clk 0:03:01.4]} 9... axb6
{[%clk 0:02:28.8]} 10. Bb5 {[%clk 0:03:01.6]} 10... Nd7 {[%clk 0:02:20.8]} 11.
Nbd2 {[%clk 0:03:01.2]} 11... Be7 {[%clk 0:02:21.1]} 12. O-O {[%clk 0:02:59]}
12... O-O {[%clk 0:02:18.6]} 13. Rfe1 {[%clk 0:02:59.3]} 13... Rfc8 {[%clk
0:02:12.5]} 14. h3 {[%clk 0:02:43.8]} 14... h6 {[%clk 0:02:11.7]} 15. a3 {[%clk
0:02:34.1]} 15... Nf6 {[%clk 0:02:00.8]} 16. Ne5 {[%clk 0:02:24.7]} 16... Nxe5
{[%clk 0:01:46.5]} 17. Bxe5 {[%clk 0:02:25.6]} 17... Ne8 {[%clk 0:01:46]} 18.
Bf1 {[%clk 0:01:40.2]} 18... Nd6 {[%clk 0:01:38.6]} 19. Bh2 {[%clk 0:01:40.3]}
19... Kf8 {[%clk 0:01:34.7]} 20. Nf3 {[%clk 0:01:28.9]} 20... Ke8 {[%clk
0:01:17.6]} 21. Ne5 {[%clk 0:01:28.5]} 21... b5 {[%clk 0:01:16]} 22. Nd3 {[%clk
0:00:48.3]} 22... Nc4 {[%clk 0:01:12.1]} 23. Ra2 {[%clk 0:00:31.7]} 23... b6
{[%clk 0:01:06.1]} 24. Nb4 {[%clk 0:00:32.1]} 24... Kd8 {[%clk 0:00:50.1]} 25.
Nd3 {[%clk 0:00:25.8]} 25... Bxd3 {[%clk 0:00:38.6]} 26. Bxd3 {[%clk 0:00:25.6]}
26... b4 {[%clk 0:00:38.9]} 27. cxb4 {[%clk 0:00:25.6]} 27... Bxb4 {[%clk
0:00:39.5]} 28. Rd1 {[%clk 0:00:21.2]} 28... Bd6 {[%clk 0:00:38.1]} 29. Bxd6
{[%clk 0:00:14.1]} 29... Nxd6 {[%clk 0:00:39]} 30. Raa1 {[%clk 0:00:14.3]} 30...
Nc4 {[%clk 0:00:33.6]} 31. Rab1 {[%clk 0:00:13.3]} 31... Rc7 {[%clk 0:00:33.7]}
32. f3 {[%clk 0:00:13.7]} 32... Rac8 {[%clk 0:00:31]} 33. Kf2 {[%clk 0:00:14.2]}
33... Ke7 {[%clk 0:00:30.7]} 34. Ke2 {[%clk 0:00:09.6]} 34... Kd6 {[%clk
0:00:30.9]} 35. a4 {[%clk 0:00:07.9]} 35... g5 {[%clk 0:00:24.1]} 36. b3 {[%clk
0:00:07.9]} 36... Na5 {[%clk 0:00:24.4]} 37. b4 {[%clk 0:00:07.4]} 37... Nc4
{[%clk 0:00:20.4]} 38. Rdc1 {[%clk 0:00:07.8]} 38... f6 {[%clk 0:00:18.9]} 39.
Ra1 {[%clk 0:00:08]} 39... e5 {[%clk 0:00:18.1]} 40. dxe5+ {[%clk 0:00:08]}
40... fxe5 {[%clk 0:00:19]} 41. Bxc4 {[%clk 0:00:08.5]} 41... Rxc4 {[%clk
0:00:19.9]} 42. Rxc4 {[%clk 0:00:06.9]} 42... Rxc4 {[%clk 0:00:18.9]} 43. a5
{[%clk 0:00:07.3]} 43... bxa5 {[%clk 0:00:19.8]} 44. bxa5 {[%clk 0:00:07.7]}
44... Kc7 {[%clk 0:00:20.1]} 45. a6 {[%clk 0:00:07.3]} 45... Kb8 {[%clk
0:00:20.5]} 46. a7+ {[%clk 0:00:07.7]} 46... Ka8 {[%clk 0:00:20.9]} 47. Ra5
{[%clk 0:00:08.3]} 47... Rc2+ {[%clk 0:00:15.6]} 48. Kf1 {[%clk 0:00:08.4]}
48... Rd2 {[%clk 0:00:15.3]} 49. g4 {[%clk 0:00:08.8]} 49... Rd3 {[%clk
0:00:11.7]} 50. Ke2 {[%clk 0:00:08.9]} 50... Rd4 {[%clk 0:00:12.3]} 51. Ke3
{[%clk 0:00:09.2]} 51... Rd1 {[%clk 0:00:12.5]} 52. Kf2 {[%clk 0:00:07.8]} 52...
Rd3 {[%clk 0:00:12.3]} 53. Ke2 {[%clk 0:00:07.9]} 53... e4 {[%clk 0:00:10.9]}
54. fxe4 {[%clk 0:00:06]} 54... dxe4 {[%clk 0:00:11.8]} 55. Re5 {[%clk
0:00:03.6]} 55... Rxh3 {[%clk 0:00:11.6]} 56. Rxe4 {[%clk 0:00:04]} 56... Kxa7
{[%clk 0:00:12.5]} 57. Rb4 {[%clk 0:00:02.5]} 57... Ka6 {[%clk 0:00:12.2]} 58.
Kf2 {[%clk 0:00:02.8]} 58... Ka5 {[%clk 0:00:12]} 59. Rb1 {[%clk 0:00:03.3]}
59... Rc3 {[%clk 0:00:11]} 60. Kg2 {[%clk 0:00:03]} 60... Rc2+ {[%clk
0:00:10.4]} 61. Kg3 {[%clk 0:00:02.9]} 61... Rc3+ {[%clk 0:00:11.3]} 62. Kg2
{[%clk 0:00:03.4]} 62... Rc6 {[%clk 0:00:12.2]} 63. Kg3 {[%clk 0:00:03.6]} 63...
Ka6 {[%clk 0:00:11.3]} 64. Kf3 {[%clk 0:00:03.7]} 64... Rf6+ {[%clk 0:00:11.4]}
65. Kg3 {[%clk 0:00:03.2]} 65... Ka7 {[%clk 0:00:11.9]} 66. Kg2 {[%clk
0:00:03.4]} 66... Rb6 {[%clk 0:00:10.1]} 67. Rc1 {[%clk 0:00:03.3]} 67... Kb7
{[%clk 0:00:10.2]} 68. Kf3 {[%clk 0:00:03.9]} 68... Rf6+ {[%clk 0:00:10.7]} 69.
Ke3 {[%clk 0:00:02.6]} 69... Re6+ {[%clk 0:00:08.3]} 70. Kf3 {[%clk 0:00:02.6]}
70... Rc6 {[%clk 0:00:07.1]} 71. Rb1+ {[%clk 0:00:01.7]} 71... Kc7 {[%clk
0:00:07.2]} 72. Ke4 {[%clk 0:00:02]} 72... Rf6 {[%clk 0:00:07.8]} 73. Ke5 {[%clk
0:00:02.2]} 73... Ra6 {[%clk 0:00:07.6]} 74. Rh1 {[%clk 0:00:03.1]} 74... Kd7
{[%clk 0:00:07.6]} 75. Kf5 {[%clk 0:00:03.7]} 75... Ke7 {[%clk 0:00:08]} 76. Rb1
{[%clk 0:00:04.2]} 76... Rf6+ {[%clk 0:00:07]} 77. Ke5 {[%clk 0:00:04.6]} 77...
Kf7 {[%clk 0:00:07.7]} 78. Rb7+ {[%clk 0:00:04.2]} 78... Kg6 {[%clk 0:00:08.1]}
79. Rb4 {[%clk 0:00:04.7]} 79... Ra6 {[%clk 0:00:07.8]} 80. Rc4 {[%clk
0:00:05.2]} 80... h5 {[%clk 0:00:06.8]} 81. gxh5+ {[%clk 0:00:05.3]} 81... Kxh5
{[%clk 0:00:07.7]} 82. Ke4 {[%clk 0:00:05.8]} 82... Kh4 {[%clk 0:00:07.3]} 83.
Kf3+ {[%clk 0:00:06.1]} 83... Kh3 {[%clk 0:00:07.5]} 84. Rc8 {[%clk 0:00:05.6]}
84... Rf6+ {[%clk 0:00:06.8]} 85. Ke2 {[%clk 0:00:05.6]} 85... g4 {[%clk
0:00:07.7]} 86. Rh8+ {[%clk 0:00:05]} 86... Kg2 {[%clk 0:00:08.2]} 87. Rg8
{[%clk 0:00:05.9]} 87... g3 {[%clk 0:00:08.7]} 88. Ke1 {[%clk 0:00:06.5]} 88...
Re6+ {[%clk 0:00:09]} 89. Kd2 {[%clk 0:00:06.7]} 89... Kf2 {[%clk 0:00:09.9]}
90. Rf8+ {[%clk 0:00:06.8]} 90... Kg1 {[%clk 0:00:10.3]} 91. Rg8 {[%clk
0:00:07.7]} 91... g2 {[%clk 0:00:10.7]} 92. Kd1 {[%clk 0:00:08.2]} 92... Re5
{[%clk 0:00:10.5]} 93. Kd2 {[%clk 0:00:08.1]} 93... Kf2 {[%clk 0:00:10.7]} 94.
Rf8+ {[%clk 0:00:07.6]} 94... Kg3 {[%clk 0:00:11.2]} 95. Rg8+ {[%clk 0:00:08.2]}
95... Kf3 {[%clk 0:00:11.7]} 96. Rf8+ {[%clk 0:00:07.8]} 96... Kg4 {[%clk
0:00:12.2]} 97. Rf2 {[%clk 0:00:08.2]} 97... g1=Q {[%clk 0:00:11.2]} 98. Rf7
{[%clk 0:00:08.7]} 98... Qe3+ {[%clk 0:00:10.8]} 99. Kc2 {[%clk 0:00:08.8]}
99... Rc5+ {[%clk 0:00:11]} 100. Kb2 {[%clk 0:00:09.6]} 100... Qc3+ {[%clk
0:00:10.4]} 101. Ka2 {[%clk 0:00:10.5]} 101... Ra5+ {[%clk 0:00:10.5]} 102. Kb1
{[%clk 0:00:11.4]} 102... Ra1# {[%clk 0:00:11.4]} 0-1